bitfinex-derivatives/quotes_SOLF0:USTF0_20260104
["timestamp","ask_amount","ask_price","bid_price","bid_amount"]
[1767495534657,5.69980022,133.71,133.69,0.0498604]
[1767495534858,0.04896606,133.72,133.69,0.0498604]
[1767495535163,5.69980022,133.71,133.69,0.0498604]
[1767495535362,0.04896606,133.72,133.69,0.0498604]
[1767495535567,5.69996644,133.71,133.69,0.0498604]
[1767495535765,0.04896606,133.72,133.69,0.0498604]
[1767495535957,5.69996644,133.71,133.69,0.0498604]
[1767495536159,0.04896606,133.72,133.69,0.0498604]
[1767495536456,5.70013396,133.71,133.69,0.0498604]
[1767495536661,0.04896606,133.72,133.69,0.0498604]
[1767495536862,5.70008979,133.71,133.69,0.0498604]
[1767495537066,0.04896606,133.72,133.69,0.0498604]
[1767495537370,5.70009446,133.71,133.69,0.0498604]
[1767495537570,0.04896606,133.72,133.69,0.0498604]
[1767495537772,5.70009446,133.71,133.69,0.0498604]
[1767495537961,0.04896606,133.72,133.69,0.0498604]
[1767495555381,0.04896606,133.72,133.69,2.70807359]
[1767495555578,2.6685543,133.75,133.69,2.70807359]
[1767495555780,88.4,133.76,133.7,2.65821319]
[1767495556078,5.69204123,133.75,133.71,2.65821319]
[1767495556279,2.6685543,133.77,133.71,2.65821319]
[1767495556478,0.05065478,133.75,133.73,0.05359696]
[1767495558078,2.6685543,133.77,133.73,0.05359696]
[1767495558278,5.68532041,133.76,133.73,0.05359696]
[1767495558480,2.6685543,133.77,133.73,0.05359696]
[1767495558682,5.68532041,133.76,133.73,0.05359696]
[1767495558988,2.6685543,133.77,133.73,0.05359696]
[1767495559181,0.05612828,133.76,133.73,0.05359696]
[1767495561089,0.05612828,133.76,133.73,2.71181015]
[1767495593023,92.64529405,133.79,133.73,2.71181015]
[1767495594224,0.04981741,133.77,133.73,2.71181015]
[1767495603526,9.78344863,133.76,133.71,2.53862166]
[1767495603733,5.67895708,133.75,133.71,2.53862166]
[1767495603934,4.10449155,133.76,133.71,2.53862166]
[1767495604134,5.67857173,133.75,133.71,2.53862166]
[1767495604337,4.10449155,133.76,133.71,2.53862166]
[1767495604531,5.67669864,133.75,133.71,2.53862166]
[1767495604730,4.10449155,133.76,133.71,2.53862166]
[1767495604731,1.6239394,133.76,133.71,2.53862166]
[1767495605133,1.6239394,133.76,133.73,2.53862166]
[1767495605331,5.78567639,133.75,133.73,2.53862166]
[1767495605526,1.6239394,133.76,133.73,2.53862166]
[1767495605738,0.04981741,133.77,133.73,2.53862166]
[1767495606333,0.04981741,133.77,133.74,2.53862166]
[1767495606636,1.6239394,133.8,133.74,2.53862166]
[1767495607739,0.0507779,133.78,133.76,0.04947156]
[1767495613340,89.9839394,133.82,133.76,2.58809322]
[1767495613742,4.10449155,133.83,133.76,2.58809322]
[1767495614345,0.05168459,133.81,133.76,2.58809322]
[1767495614849,90.82055215,133.85,133.77,2.53862166]
[1767495615142,1.6239394,133.84,133.77,2.53862166]
[1767495615545,4.10449155,133.84,133.77,2.53862166]
[1767495616045,0.04850737,133.82,133.79,0.05121048]
[1767495617239,0.04850737,133.82,133.79,2.58983214]
[1767495618040,4.10449155,133.86,133.8,2.53862166]
[1767495618243,5.74131983,133.85,133.8,2.53862166]
[1767495618547,4.10449155,133.86,133.8,2.53862166]
[1767495618733,5.73884645,133.85,133.8,2.53862166]
[1767495618943,89.9639394,133.87,133.8,2.53862166]
[1767495619141,0.04720014,133.84,133.8,2.53862166]
[1767495619339,0.04720014,133.84,133.82,2.59413954]
[1767495619945,88.34,133.87,133.82,2.59413954]
[1767495620649,4.10449155,133.88,133.82,2.59413954]
[1767495621647,0.05110861,133.86,133.82,2.59413954]
[1767495628763,16.96910988,133.9,133.83,2.53862166]
[1767495629850,0.05380848,133.88,133.85,2.59525922]
[1767495636758,16.96910988,133.9,133.85,2.59525922]
[1767495637860,0.05532736,133.89,133.85,2.59525922]
[1767495640065,0.05532736,133.89,133.86,2.56453924]
[1767495640365,16.96910988,133.9,133.86,2.56453924]
[1767495641254,0.0406938,133.89,133.86,2.56453924]
[1767495644572,16.96910988,133.9,133.86,2.56453924]
[1767495650272,19.5332683,133.9,133.85,6.78323756]
[1767495650475,19.5332683,133.9,133.85,0.05663756]
[1767495650673,16.96910988,133.9,133.85,2.6211768]
[1767495651875,16.96910988,133.9,133.85,9.3479768]
[1767495653978,16.96910988,133.9,133.86,2.56453924]
[1767495659681,16.96910988,133.9,133.87,2.56453924]
[1767495660982,16.96910988,133.9,133.86,6.7262]
[1767495664980,2.46515024,133.94,133.88,2.51336959]
[1767495665184,2.46515024,133.97,133.9,0.0522763]
[1767495665386,8.17878366,133.96,133.9,0.0522763]
[1767495665583,2.46515024,133.96,133.9,6.7764763]
[1767495667983,2.46515024,133.96,133.9,0.0522763]
[1767495671285,2.46515024,133.94,133.9,0.0522763]
[1767495671990,2.46515024,133.94,133.85,9.23996959]
[1767495671991,2.46515024,133.92,133.85,9.23996959]
[1767495672782,0.05227631,133.9,133.87,0.04721691]
[1767495673283,2.51742655,133.9,133.87,0.04721691]
[1767495673786,2.51742655,133.9,133.83,2.51336959]
[1767495674890,2.51742655,133.9,133.85,0.04856153]
[1767495675490,2.46515024,133.88,133.81,2.51336959]
[1767495675885,2.46515024,133.87,133.79,2.51336959]
[1767495676085,2.46515024,133.86,133.79,2.51336959]
[1767495676587,0.05030034,133.84,133.81,0.04730294]
[1767495678389,2.46515024,133.88,133.81,5.09497734]
[1767495678593,2.46515024,133.88,133.81,5.0476744]
[1767495679294,0.05168321,133.86,133.83,0.04939432]
[1767495682297,2.51683345,133.86,133.83,0.04939432]
[1767495691596,2.51683345,133.86,133.8,8.35095997]
[1767495691597,2.51683345,133.86,133.79,2.50553954]
[1767495691801,2.51683345,133.86,133.72,118.85566923]
[1767495691802,2.70727395,133.84,133.77,4.12739951]
[1767495692610,2.70727395,133.84,133.77,10.85809951]
[1767495692803,0.05120644,133.82,133.79,0.05518223]
[1767495697807,0.05120644,133.82,133.79,1.6770422]
[1767495703206,0.05120644,133.82,133.79,0.05518223]
[1767495705213,2.70727395,133.84,133.79,4.31230193]
[1767495706314,0.05745445,133.83,133.79,4.31230193]
[1767495719012,0.05745445,133.83,133.79,2.69044196]
[1767495720120,2.73172212,133.83,133.79,0.05518223]
[1767495722322,5.72137616,133.82,133.79,0.05518223]
[1767495722523,2.73172212,133.83,133.79,0.05518223]
[1767495722725,5.72839513,133.82,133.79,0.05518223]
[1767495722911,2.73172212,133.83,133.79,0.05518223]
[1767495723118,5.72706752,133.82,133.79,0.05518223]
[1767495723421,2.73172212,133.83,133.79,0.05518223]
[1767495723609,5.72666388,133.82,133.79,0.05518223]
[1767495723816,2.73172212,133.83,133.79,0.05518223]
[1767495724013,5.72662868,133.82,133.79,0.05518223]
[1767495724218,2.73172212,133.83,133.79,0.05518223]
[1767495724418,5.72637515,133.82,133.79,0.05518223]
[1767495724623,2.73172212,133.83,133.79,0.05518223]
[1767495724825,5.72673498,133.82,133.79,0.05518223]
[1767495725026,2.73172212,133.83,133.79,0.05518223]
[1767495725326,5.72674781,133.82,133.79,0.05518223]
[1767495725527,2.73172212,133.83,133.79,0.05518223]
[1767495725825,5.72651664,133.82,133.79,0.05518223]
[1767495726024,2.73172212,133.83,133.79,0.05518223]
[1767495726327,5.72651664,133.82,133.79,0.05518223]
[1767495726520,2.73172212,133.83,133.79,0.05518223]
[1767495726826,8.40046703,133.82,133.79,0.05518223]
[1767495727027,2.67426767,133.82,133.79,0.05518223]
[1767495730129,2.67426767,133.82,133.75,2.64537567]
[1767495731121,2.67426767,133.82,133.77,0.05277238]
[1767495732223,0.05347578,133.81,133.77,0.05277238]
[1767495732531,0.05347578,133.81,133.77,2.69814805]
[1767495734231,0.05347578,133.81,133.77,4.32000802]
[1767495734730,2.67426767,133.85,133.78,2.64537567]
[1767495734935,5.73083554,133.84,133.78,2.64537567]
[1767495735229,5.73083554,133.83,133.78,2.64537567]
[1767495735424,2.67426767,133.85,133.78,2.64537567]
[1767495735627,5.73242152,133.84,133.78,2.64537567]
[1767495735825,0.05543791,133.82,133.8,0.05367207]
[1767495736127,2.67426767,133.87,133.8,2.69904774]
[1767495736430,5.73548173,133.86,133.8,2.69904774]
[1767495736728,5.73548173,133.85,133.8,2.69904774]
[1767495736934,2.67426767,133.87,133.8,2.69904774]
[1767495737133,5.73532258,133.86,133.8,2.69904774]
[1767495737328,5.73532258,133.85,133.8,2.69904774]
[1767495737529,2.67426767,133.87,133.8,2.69904774]
[1767495737831,5.73453237,133.86,133.8,2.69904774]
[1767495738032,5.73453237,133.85,133.8,2.69904774]
[1767495738235,2.67426767,133.87,133.8,2.69904774]
[1767495738428,5.73387178,133.86,133.8,2.69904774]
[1767495738628,5.73387178,133.85,133.8,2.69904774]
[1767495738829,2.67426767,133.87,133.8,2.69904774]
[1767495739031,5.7338677,133.86,133.8,2.69904774]
[1767495739328,5.7338677,133.85,133.8,2.69904774]
[1767495739531,2.67426767,133.87,133.8,2.69904774]
[1767495739723,5.73325126,133.86,133.8,2.69904774]
[1767495739926,5.73325126,133.85,133.8,2.69904774]
[1767495740138,2.67426767,133.87,133.8,2.69904774]
[1767495740435,5.73267583,133.86,133.8,2.69904774]
[1767495740636,5.73267583,133.85,133.8,2.69904774]
[1767495740839,2.67426767,133.87,133.8,2.69904774]
[1767495741038,8.40694758,133.86,133.8,2.69904774]
[1767495741237,5.73267991,133.85,133.8,2.69904774]
[1767495741535,2.67426767,133.86,133.8,2.69904774]
[1767495741735,5.73213683,133.85,133.8,2.69904774]
[1767495741937,2.67426767,133.86,133.8,2.69904774]
[1767495742436,5.73491784,133.85,133.8,2.69904774]
[1767495742635,2.67426767,133.86,133.8,2.69904774]
[1767495742829,5.73629998,133.85,133.8,2.69904774]
[1767495743033,2.67426767,133.86,133.8,2.69904774]
[1767495743233,5.73629998,133.85,133.8,2.69904774]
[1767495743432,2.67426767,133.86,133.8,2.69904774]
[1767495743633,5.73584716,133.85,133.8,2.69904774]
[1767495743833,2.67426767,133.86,133.8,2.69904774]
[1767495744030,5.73584716,133.85,133.8,2.69904774]
[1767495744232,2.67426767,133.86,133.8,2.69904774]
[1767495744941,0.04221083,133.84,133.8,2.69904774]
[1767495774075,2.69651581,133.84,133.8,0.05367207]
[1767495780583,5.75603883,133.83,133.8,0.05367207]
[1767495780780,2.69651581,133.84,133.8,0.05367207]
[1767495780979,5.75550114,133.83,133.8,0.05367207]
[1767495781176,2.69651581,133.84,133.8,0.05367207]
[1767495781382,5.75446232,133.83,133.8,0.05367207]
[1767495781582,2.69651581,133.84,133.8,0.05367207]
[1767495781783,5.75420822,133.83,133.8,0.05367207]
[1767495781985,2.69651581,133.84,133.8,0.05367207]
[1767495782286,5.75425304,133.83,133.8,0.05367207]
[1767495782488,2.69651581,133.84,133.8,0.05367207]
[1767495782680,5.75414135,133.83,133.8,0.05367207]
[1767495782882,2.69651581,133.84,133.8,0.05367207]
[1767495783187,5.75470997,133.83,133.8,0.05367207]
[1767495783387,2.69651581,133.84,133.8,0.05367207]
[1767495783588,5.75433287,133.83,133.8,0.05367207]
[1767495783884,5.75433287,133.83,133.76,88.3]
[1767495783885,5.75391567,133.82,133.76,2.72129912]
[1767495784089,2.53982258,133.8,133.72,2.72129912]
[1767495784289,2.53982258,133.79,133.72,2.72129912]
[1767495784786,2.53982258,133.79,133.73,9.45399912]
[1767495784980,0.05409416,133.77,133.75,0.04736488]
[1767495786389,2.53982258,133.81,133.75,2.768664]
[1767495786589,5.73925586,133.8,133.75,2.768664]
[1767495786784,2.53982258,133.81,133.75,2.768664]
[1767495786986,5.73925586,133.8,133.75,2.768664]
[1767495787290,2.53982258,133.81,133.75,2.768664]
[1767495787481,0.04178873,133.79,133.75,2.768664]
[1767495794095,2.58161131,133.79,133.75,0.04736488]
[1767495804797,0.04178873,133.79,133.75,2.768664]
[1767495811418,2.63592113,133.79,133.75,0.04736488]
[1767495816921,4.25961599,133.79,133.75,0.04736488]
[1767495817220,2.61240648,133.78,133.75,0.04736488]
[1767495836630,5.76965283,133.77,133.75,0.04736488]
[1767495836830,2.61240648,133.78,133.75,0.04736488]
[1767495837137,5.76965283,133.77,133.75,0.04736488]
[1767495837350,2.61240648,133.78,133.75,0.04736488]
[1767495837639,5.7704253,133.77,133.75,0.04736488]
[1767495837823,2.61240648,133.78,133.75,0.04736488]
[1767495838026,5.77041282,133.77,133.75,0.04736488]
[1767495838222,2.61240648,133.78,133.75,0.04736488]
[1767495838436,5.77131126,133.77,133.75,0.04736488]
[1767495838638,2.61240648,133.78,133.75,0.04736488]
[1767495838831,5.7713242,133.77,133.75,0.04736488]
[1767495839032,2.61240648,133.78,133.75,0.04736488]
[1767495839233,5.7713217,133.77,133.75,0.04736488]
[1767495839430,5.77071231,133.76,133.75,0.04736488]
[1767495840934,2.61240648,133.78,133.75,0.04736488]
[1767495841134,5.77148077,133.77,133.75,0.04736488]
[1767495841337,2.61240648,133.78,133.75,0.04736488]
[1767495841537,8.34808223,133.77,133.75,0.04736488]
[1767495841729,5.77135142,133.76,133.75,0.04736488]
[1767495841928,5.77135142,133.76,133.71,11.02743542]
[1767495842238,2.57673081,133.77,133.71,11.02743542]
[1767495842540,2.57673081,133.77,133.72,2.67014056]
[1767495843040,0.05624634,133.76,133.73,0.05021409]
[1767495844043,2.57673081,133.77,133.73,0.05021409]
[1767495845043,0.03290727,133.76,133.73,0.05021409]
[1767495845842,2.57673081,133.79,133.73,2.72035465]
[1767495846043,8.34194275,133.78,133.73,2.72035465]
[1767495846243,2.57673081,133.78,133.73,2.72035465]
[1767495848348,5.76554583,133.77,133.73,2.72035465]
[1767495848546,2.57673081,133.78,133.73,2.72035465]
[1767495848747,5.76621033,133.77,133.73,2.72035465]
[1767495848944,2.57673081,133.78,133.73,2.72035465]
[1767495849143,5.76624849,133.77,133.73,2.72035465]
[1767495849344,2.57673081,133.78,133.73,2.72035465]
[1767495849545,5.76645442,133.77,133.73,2.72035465]
[1767495849741,2.57673081,133.78,133.73,2.72035465]
[1767495849942,5.76645442,133.77,133.73,2.72035465]
[1767495850138,2.57673081,133.78,133.73,2.72035465]
[1767495850443,5.76645442,133.77,133.73,2.72035465]
[1767495850642,2.57673081,133.78,133.73,2.72035465]
[1767495850841,5.76679626,133.77,133.73,2.72035465]
[1767495851142,2.57673081,133.78,133.73,2.72035465]
[1767495851341,5.76687549,133.77,133.73,2.72035465]
[1767495851542,2.57673081,133.78,133.73,2.72035465]
[1767495851744,5.76720882,133.77,133.73,2.72035465]
[1767495851950,2.57673081,133.78,133.73,2.72035465]
[1767495852150,5.76720882,133.77,133.73,2.72035465]
[1767495852350,2.57673081,133.78,133.73,2.72035465]
[1767495852550,5.7676509,133.77,133.73,2.72035465]
[1767495852752,2.57673081,133.78,133.73,2.72035465]
[1767495852955,5.7676509,133.77,133.73,2.72035465]
[1767495853254,2.57673081,133.78,133.73,2.72035465]
[1767495853550,5.7681206,133.77,133.73,2.72035465]
[1767495853752,2.57673081,133.78,133.73,2.72035465]
[1767495853954,5.7681206,133.77,133.73,2.72035465]
[1767495854152,2.57673081,133.78,133.73,2.72035465]
[1767495854353,5.76818847,133.77,133.73,2.72035465]
[1767495854653,2.57673081,133.78,133.73,2.72035465]
[1767495854854,5.76864457,133.77,133.73,2.72035465]
[1767495855054,2.57673081,133.78,133.73,2.72035465]
[1767495855253,5.76865703,133.77,133.73,2.72035465]
[1767495855456,2.57673081,133.78,133.73,2.72035465]
[1767495855647,5.7692444,133.77,133.73,2.72035465]
[1767495855846,4.20042567,133.8,133.73,2.72035465]
[1767495856048,8.34670845,133.79,133.73,2.72035465]
[1767495856358,5.76997764,133.78,133.73,4.34404951]
[1767495856955,5.76997764,133.78,133.73,2.72035465]
[1767495857152,5.76997764,133.78,133.73,4.34404951]
[1767495865754,8.34670845,133.78,133.73,4.34404951]
[1767495865958,5.76997764,133.77,133.73,4.34404951]
[1767495866255,2.57673081,133.76,133.73,0.05021409]
[1767495867260,2.57673081,133.79,133.73,0.05021409]
[1767495867563,8.35092869,133.78,133.73,0.05021409]
[1767495867863,5.77419788,133.77,133.73,0.05021409]
[1767495881674,8.45147705,133.77,133.73,0.05021409]
[1767495881969,2.67727917,133.77,133.73,0.05021409]
[1767495882175,2.67727917,133.75,133.69,2.60396368]
[1767495883274,0.0502141,133.73,133.71,0.05695418]
[1767495889777,2.67727917,133.72,133.67,6.7356]
[1767495890173,2.67727917,133.72,133.67,9.33956368]
[1767495890877,2.67727917,133.72,133.68,0.04996445]
[1767495891275,0.0502141,133.73,133.68,2.65392813]
[1767495891871,0.0502141,133.73,133.68,5.19140823]
[1767495892679,0.0502141,133.73,133.69,2.60396368]
[1767495894171,2.67727917,133.78,133.7,2.60396368]
[1767495894384,2.67727917,133.76,133.7,2.60396368]
[1767495895173,0.05617852,133.74,133.72,0.0571883]
[1767495902892,2.46714452,133.8,133.73,2.65164541]
[1767495903094,8.22125372,133.79,133.73,2.65164541]
[1767495903391,5.7541092,133.78,133.73,2.65164541]
[1767495903588,5.7541092,133.78,133.73,9.38444541]
[1767495903789,88.36,133.83,133.74,5.23676935]
[1767495903980,5.75507558,133.82,133.75,2.65164541]
[1767495904184,5.75507558,133.81,133.77,0.05487007]
[1767495904385,88.36,133.83,133.77,0.05487007]
[1767495904584,5.75128107,133.82,133.77,0.05487007]
[1767495904781,5.75128107,133.81,133.77,0.05487007]
[1767495904986,88.36,133.83,133.77,0.05487007]
[1767495905186,5.74928789,133.82,133.77,0.05487007]
[1767495905388,5.74928789,133.82,133.73,104.7329]
[1767495905389,5.74740673,133.81,133.73,2.65164541]
[1767495905693,88.36,133.83,133.73,2.65164541]
[1767495905887,2.46714452,133.81,133.73,2.65164541]
[1767495906289,0.05120187,133.78,133.76,0.05741946]
[1767495912101,2.51834639,133.78,133.76,0.05741946]
[1767495912295,2.51834639,133.78,133.72,2.5374801]
[1767495912600,2.51834639,133.78,133.7,5.18912551]
[1767495912799,2.46714452,133.76,133.7,5.18912551]
[1767495912994,2.46714452,133.76,133.7,2.65164541]
[1767495913301,0.05283349,133.74,133.72,0.05691376]
[1767495922213,2.46714452,133.76,133.72,0.05691376]
[1767495924707,0.05062542,133.75,133.72,0.05691376]
[1767495930211,2.66073953,133.75,133.72,0.05691376]
[1767495930612,2.66073953,133.75,133.68,6.7352]
[1767495930820,2.66073953,133.75,133.68,8.35964322]
[1767495931117,2.66073953,133.75,133.68,11.01699729]
[1767495931716,2.66073953,133.75,133.7,0.04938562]
[1767495932012,193.0436,133.8,133.74,2.65735407]
[1767495932013,2.61011411,133.8,133.74,2.65735407]
[1767495932213,2.61011411,133.83,133.76,4.28179729]
[1767495933014,2.61011411,133.83,133.78,0.04804249]
[1767495934224,2.61011411,133.83,133.78,4.19628764]
[1767495934722,0.05285397,133.82,133.78,4.19628764]
[1767495935124,2.57551597,133.84,133.78,1.67248571]
[1767495935921,2.57551597,133.84,133.78,4.19628764]
[1767495940531,2.57551597,133.84,133.78,0.04804249]
[1767495940937,2.57551597,133.82,133.78,0.04804249]
[1767495941236,2.57551597,133.82,133.79,0.04989192]
[1767495954444,2.57551597,133.82,133.76,4.14824515]
[1767495954942,2.57551597,133.82,133.77,2.52380193]
[1767495955642,0.04960134,133.81,133.78,0.05054425]
[1767495956138,0.04960134,133.81,133.78,2.57434618]
[1767495956344,2.57551597,133.84,133.79,2.52380193]
[1767495961848,4.16112467,133.86,133.79,2.52380193]
[1767495962049,4.16112467,133.86,133.81,0.0561087]
[1767495963048,2.53668145,133.85,133.81,0.0561087]
[1767495965748,101.24419144,133.87,133.81,2.57435424]
[1767495969453,12.88419144,133.87,133.81,2.57435424]
[1767495970148,2.53668145,133.86,133.81,2.57435424]
[1767495977657,2.53668145,133.83,133.77,2.51824554]
[1767495978253,2.53668145,133.83,133.78,2.51824554]
[1767495978858,0.05386924,133.82,133.79,0.05310163]
[1767495982359,2.59055069,133.82,133.79,0.05310163]
[1767495983768,0.05386924,133.82,133.79,0.05310163]
[1767495999286,2.59106556,133.82,133.79,0.05310163]
[1767495999486,2.59106556,133.82,133.76,2.75024631]
[1767495999788,2.53719632,133.79,133.7,2.75024631]
[1767496000077,9.26540674,133.8,133.7,2.75024631]
[1767496000078,2.53719632,133.77,133.7,2.75024631]
[1767496000583,0.05548845,133.75,133.72,0.04788772]
[1767496004597,0.05548845,133.75,133.72,2.79813403]
[1767496005493,2.53719632,133.78,133.72,2.79813403]
[1767496007888,2.53719632,133.78,133.73,2.75024631]
[1767496020206,2.53719632,133.78,133.72,0.04788772]
[1767496020701,5.22652708,133.8,133.72,2.6171619]
[1767496020906,2.69092034,133.8,133.72,2.6171619]
[1767496022010,2.69092034,133.8,133.72,9.3504619]
[1767496022805,2.69092034,133.8,133.73,2.56927418]
[1767496023004,2.69092034,133.8,133.75,0.05041563]
[1767496029309,2.69092034,133.8,133.75,2.61968981]
[1767496029711,2.69092034,133.82,133.75,2.61968981]
[1767496050232,2.69092034,133.82,133.75,0.05041563]
[1767496050428,2.65420987,133.8,133.75,0.05041563]
[1767496055337,2.65420987,133.8,133.75,2.78356428]
[1767496055727,1.62370145,133.81,133.75,2.78356428]
[1767496056638,4.28065359,133.81,133.75,2.78356428]
[1767496057534,2.65695214,133.8,133.75,0.05041563]
[1767496057839,1.62370145,133.81,133.75,0.05041563]
[1767496057840,4.28065359,133.79,133.75,0.05041563]
[1767496061331,2.65695214,133.81,133.75,2.78356428]
[1767496061540,5.65660865,133.8,133.75,2.78356428]
[1767496061742,2.65695214,133.81,133.75,2.78356428]
[1767496061936,8.31366406,133.8,133.75,0.05041563]
[1767496062135,4.28065359,133.8,133.75,0.05041563]
[1767496066629,2.65695214,133.8,133.75,0.05041563]
[1767496072351,2.65695214,133.8,133.75,2.78356428]
[1767496077052,2.74018902,133.79,133.75,0.05041563]
[1767496085455,1.62370145,133.8,133.75,2.78483409]
[1767496086057,2.63216603,133.8,133.75,2.78483409]
[1767496087655,2.63216603,133.8,133.75,9.51653409]
[1767496095954,2.63216603,133.8,133.75,11.14023554]
[1767496096854,4.25586748,133.82,133.76,2.73441846]
[1767496097062,2.63216603,133.82,133.77,2.73441846]
[1767496097362,2.63216603,133.82,133.78,0.04996896]
[1767496097957,4.25586748,133.84,133.78,2.78438742]
[1767496098162,5.66609685,133.83,133.78,2.78438742]
[1767496098464,2.63216603,133.83,133.78,2.78438742]
[1767496102462,2.63216603,133.83,133.78,0.04996896]
[1767496104663,2.63216603,133.82,133.78,0.04996896]
[1767496108458,2.63216603,133.82,133.75,4.35811991]
[1767496109663,0.04757301,133.8,133.77,0.05400639]
[1767496112070,2.79453145,133.8,133.72,2.63255825]
[1767496112264,2.74695844,133.8,133.73,1.62370145]
[1767496112461,2.74695844,133.8,133.73,2.63255825]
[1767496112665,2.74695844,133.78,133.71,90.95255825]
[1767496112866,2.74695844,133.78,133.71,2.63255825]
[1767496113272,0.05225683,133.76,133.73,0.05481362]
[1767496118571,2.79921527,133.76,133.73,0.05481362]
[1767496119868,2.74695844,133.79,133.73,2.68737187]
[1767496120779,2.74695844,133.79,133.73,9.42017187]
[1767496120976,0.05047267,133.77,133.73,9.42017187]
[1767496123680,2.79743111,133.77,133.73,0.05481362]
[1767496125079,2.79743111,133.77,133.71,9.36625825]
[1767496125080,2.79743111,133.77,133.69,9.36725825]
[1767496125282,2.74695844,133.75,133.69,9.36725825]
[1767496126073,0.05051125,133.73,133.71,0.05526902]
[1767496127688,2.74695844,133.77,133.71,2.68782727]
[1767496127984,2.53714304,133.8,133.71,2.63255825]
[1767496128192,8.40861027,133.79,133.72,2.63255825]
[1767496128490,2.74695844,133.79,133.72,2.63255825]
[1767496128884,2.74695844,133.79,133.74,0.05655851]
[1767496129287,0.05360219,133.78,133.74,0.05655851]
[1767496133486,0.05360219,133.78,133.74,2.68911676]
[1767496135488,0.05360219,133.78,133.74,9.42141676]
[1767496136501,2.74695844,133.81,133.75,2.63255825]
[1767496137701,0.02104706,133.79,133.75,2.63255825]
[1767496141509,88.34,133.82,133.75,2.63255825]
[1767496142009,2.5028972,133.83,133.76,2.66435288]
[1767496142600,2.5028972,133.83,133.78,0.05636025]
[1767496145308,2.5028972,133.85,133.78,2.72071313]
[1767496146811,2.5028972,133.85,133.78,0.05636025]
[1767496147011,2.5028972,133.83,133.78,0.05636025]
[1767496154422,2.5028972,133.83,133.76,2.66435288]
[1767496154423,2.5028972,133.81,133.74,2.66435288]
[1767496154717,2.5028972,133.8,133.74,2.66435288]
[1767496155516,0.05333671,133.78,133.76,0.05429744]
[1767496170631,2.54908056,133.78,133.69,104.7636]
[1767496170825,2.54908056,133.78,133.63,1.3007887]
[1767496170826,0.10904769,133.74,133.65,2.67558343]
[1767496171125,0.10904769,133.72,133.65,2.67558343]
[1767496171727,0.10904769,133.72,133.64,104.8034]
[1767496171728,0.05258271,133.7,133.67,0.05488191]
[1767496178540,0.05258271,133.7,133.67,2.78270402]
[1767496178841,1.6256937,133.72,133.67,2.78270402]
[1767496179827,0.05417665,133.71,133.67,2.78270402]
[1767496180832,6.7316,133.76,133.67,2.78270402]
[1767496180833,0.17594434,133.76,133.67,2.78270402]
[1767496181137,89.9856937,133.75,133.67,2.72782211]
[1767496181342,0.17594434,133.76,133.69,2.72782211]
[1767496181532,1.80163804,133.76,133.69,2.72782211]
[1767496181948,1.80163804,133.76,133.71,0.04917564]
[1767496182541,1.6256937,133.74,133.71,0.04917564]
[1767496183924,1.80373482,133.75,133.71,0.04917564]
[1767496185239,1.6256937,133.75,133.71,0.04917564]
[1767496185545,1.6256937,133.78,133.71,2.77699775]
[1767496185842,1.6256937,133.78,133.73,0.04941682]
[1767496189043,1.6256937,133.78,133.73,2.77723893]
[1767496190040,1.81982941,133.78,133.73,0.04941682]
[1767496195344,1.81982941,133.78,133.73,2.77723893]
[1767496199051,1.83641958,133.79,133.73,2.77723893]
[1767496199845,1.6256937,133.79,133.73,2.77723893]
[1767496200146,1.6256937,133.8,133.73,2.77723893]
[1767496201244,0.212465,133.81,133.75,2.6485703]
[1767496201448,0.212465,133.81,133.77,0.0489887]
[1767496204232,90.20498835,133.83,133.77,2.697559]
[1767496204949,89.9856937,133.83,133.77,2.697559]
[1767496205645,0.22091685,133.84,133.78,2.6485703]
[1767496206144,1.6256937,133.85,133.79,2.6485703]
[1767496206347,1.6256937,133.85,133.81,0.0516547]
[1767496209838,1.6256937,133.85,133.81,2.700225]
[1767496210043,0.22252042,133.86,133.81,2.700225]
[1767496211953,0.23176235,133.88,133.82,2.6485703]
[1767496212261,0.23176235,133.88,133.84,0.05380276]
[1767496213353,88.32,133.9,133.84,0.05380276]
[1767496213354,90.17893505,133.9,133.84,0.05380276]
[1767496213856,90.17893505,133.9,133.84,2.70237306]
[1767496214065,88.55324135,133.9,133.84,2.70237306]
[1767496215356,0.23324135,133.9,133.84,2.70237306]
[1767496216054,1.86327088,133.89,133.84,0.05380276]
[1767496220060,1.6256937,133.89,133.84,2.70237306]
[1767496220361,1.86882313,133.91,133.84,2.70237306]
[1767496221861,1.86882313,133.91,133.84,9.42957306]
[1767496222159,1.86882313,133.91,133.85,2.6485703]
[1767496222861,0.24312943,133.91,133.85,2.6485703]
[1767496226463,88.3,133.92,133.86,2.6485703]
[1767496226669,88.3,133.92,133.88,0.05533221]
[1767496227164,0.25224937,133.93,133.88,0.05533221]
[1767496227471,1.87794307,133.94,133.88,2.70390251]
[1767496227662,1.87794307,133.94,133.9,0.04887813]
[1767496230769,1.6256937,133.94,133.9,0.04887813]
[1767496230969,0.25492619,133.96,133.9,0.04887813]
[1767496231176,1.88061989,133.96,133.9,0.04887813]
[1767496231375,0.25492619,133.95,133.9,0.04887813]
[1767496232376,0.25678063,133.98,133.91,2.53870755]
[1767496232680,0.25678063,133.98,133.93,0.04784412]